[Event "Allsvenskan Div I 3 2023/2024: SS Manhem II - Team Pelaro Alingsas SS"]
[Site "Goteborgs schackcentrum, Vegatan 20, Gothenburg, Sweden"]
[Date "2023.10.22"]
[Round "1.5"]
[White "Dahlgren, Jonas"]
[Black "Krantz, Martin"]
[Result "1/2-1/2"]
[TimeControl "90 minutes for 40 moves + 30 minutes for the rest of the game + 30 seconds per move from move one."]
[WhiteFideId "1723910"]
[BlackFideId "1724100"]
[WhiteElo "1988"]
[BlackElo "2007"]

1. e4 {[%clk 01:30:54]} {[%emt 00:00:06]} c5 {[%clk 01:30:49]} {[%emt
00:00:11]} 2. Nc3 {[%clk 01:30:56]} {[%emt 00:00:27]} Nc6 {[%clk 01:31:00]}
{[%emt 00:00:20]} 3. Bb5 {[%clk 01:30:50]} {[%emt 00:00:36]} Nd4 {[%clk
01:30:57]} {[%emt 00:00:33]} 4. Bc4 {[%clk 01:31:10]} {[%emt 00:00:11]} g6
{[%clk 01:29:39]} {[%emt 00:01:47]} 5. Nf3 {[%clk 01:30:39]} {[%emt 00:01:01]}
Bg7 {[%clk 01:29:37]} {[%emt 00:00:32]} 6. Nxd4 {[%clk 01:30:33]} {[%emt
00:00:36]} cxd4 {[%clk 01:27:05]} {[%emt 00:03:02]} 7. Qf3 {[%clk 01:28:36]}
{[%emt 00:02:26]} e6 {[%clk 01:26:34]} {[%emt 00:01:01]} 8. Nb5 {[%clk
01:25:11]} {[%emt 00:03:55]} d6 {[%clk 01:23:27]} {[%emt 00:03:38]} 9. Qa3
{[%clk 01:24:14]} {[%emt 00:01:27]} Be5 {[%clk 01:20:11]} {[%emt 00:03:47]} 10.
O-O {[%clk 01:20:10]} {[%emt 00:04:33]} a6 {[%clk 01:13:08]} {[%emt 00:07:33]}
11. f4 {[%clk 01:17:58]} {[%emt 00:02:41]} Bd7 {[%clk 01:05:32]} {[%emt
00:08:06]} 12. Nxd6+ {[%clk 01:16:06]} {[%emt 00:02:23]} Bxd6 {[%clk 01:05:57]}
{[%emt 00:00:05]} 13. Qxd6 {[%clk 01:16:25]} {[%emt 00:00:11]} Bc6 {[%clk
01:06:14]} {[%emt 00:00:12]} 14. Qxd8+ {[%clk 01:05:12]} {[%emt 00:11:44]} Rxd8
{[%clk 01:06:37]} {[%emt 00:00:07]} 15. d3 {[%clk 01:05:31]} {[%emt 00:00:11]}
Ne7 {[%clk 01:05:33]} {[%emt 00:01:34]} 16. Bd2 {[%clk 01:04:24]} {[%emt
00:01:37]} O-O {[%clk 01:03:51]} {[%emt 00:02:12]} 17. Be1 {[%clk 00:59:40]}
{[%emt 00:05:14]} Kg7 {[%clk 01:01:46]} {[%emt 00:02:35]} 18. Bh4 {[%clk
00:55:57]} {[%emt 00:04:12]} Rd7 {[%clk 01:01:09]} {[%emt 00:01:08]} 19. g4
{[%clk 00:51:24]} {[%emt 00:05:04]} Ng8 {[%clk 00:57:21]} {[%emt 00:04:17]} 20.
f5 {[%clk 00:40:54]} {[%emt 00:11:00]} exf5 {[%clk 00:52:44]} {[%emt 00:05:07]}
21. gxf5 {[%clk 00:41:01]} {[%emt 00:00:24]} f6 {[%clk 00:43:03]} {[%emt
00:10:11]} 22. Bxg8 {[%clk 00:23:56]} {[%emt 00:17:35]} Kxg8 {[%clk 00:43:22]}
{[%emt 00:00:10]} 23. fxg6 {[%clk 00:24:18]} {[%emt 00:00:09]} Rg7 {[%clk
00:42:51]} {[%emt 00:01:01]} 24. Rf5 {[%clk 00:21:19]} {[%emt 00:03:26]} Rxg6+
{[%clk 00:42:04]} {[%emt 00:01:19]} 25. Kh1 {[%clk 00:21:22]} {[%emt 00:00:26]}
Kf7 {[%clk 00:34:01]} {[%emt 00:08:34]} 26. Rg1 {[%clk 00:14:53]} {[%emt
00:06:59]} Ke6 {[%clk 00:33:43]} {[%emt 00:00:48]} 27. Bf2 {[%clk 00:13:14]}
{[%emt 00:02:09]} Rd8 {[%clk 00:32:28]} {[%emt 00:01:45]} 28. h4 {[%clk
00:12:10]} {[%emt 00:01:34]} Ba4 {[%clk 00:28:42]} {[%emt 00:04:15]} 29. b3
{[%clk 00:08:49]} {[%emt 00:03:52]} Bc6 {[%clk 00:21:59]} {[%emt 00:07:12]} 30.
Kh2 {[%clk 00:06:58]} {[%emt 00:02:22]} b6 {[%clk 00:20:36]} {[%emt 00:01:52]}
31. Rh5 {[%clk 00:04:24]} {[%emt 00:03:03]} Rd7 {[%clk 00:08:39]} {[%emt
00:12:29]} 32. Rxg6 {[%clk 00:03:52]} {[%emt 00:01:03]} hxg6 {[%clk 00:09:00]}
{[%emt 00:00:08]} 33. Rh6 {[%clk 00:04:17]} {[%emt 00:00:04]} Kf7 {[%clk
00:06:37]} {[%emt 00:02:55]} 34. Rh7+ {[%clk 00:04:32]} {[%emt 00:00:14]} Ke6
{[%clk 00:07:03]} {[%emt 00:00:04]} 35. Rxd7 {[%clk 00:04:48]} {[%emt
00:00:14]} Bxd7 {[%clk 00:07:29]} {[%emt 00:00:04]} 36. Bxd4 {[%clk 00:05:10]}
{[%emt 00:00:08]} b5 {[%clk 00:07:47]} {[%emt 00:00:11]} 37. Kg3 {[%clk
00:05:26]} {[%emt 00:00:14]} Bc6 {[%clk 00:07:54]} {[%emt 00:00:23]} 38. Kf4
{[%clk 00:05:42]} {[%emt 00:00:14]} Bd7 {[%clk 00:07:25]} {[%emt 00:01:00]} 39.
c4 {[%clk 00:05:36]} {[%emt 00:00:36]} Bc6 {[%clk 00:07:30]} {[%emt 00:00:25]}
40. Bc3 {[%clk 00:05:31]} {[%emt 00:00:34]} bxc4 {[%clk 00:07:10]} {[%emt
00:00:52]} 41. bxc4 {[%clk 00:05:39]} {[%emt 00:00:22]} Bb7 {[%clk 00:06:33]}
{[%emt 00:01:06]} 42. Bb4 {[%clk 00:03:38]} {[%emt 00:02:30]} Bc6 {[%clk
00:06:22]} {[%emt 00:00:42]} 43. a3 {[%clk 00:01:28]} {[%emt 00:02:40]} Bb7
{[%clk 00:06:19]} {[%emt 00:00:32]} 44. Bc3 {[%clk 00:30:26]} {[%emt 00:01:33]}
Ba8 {[%clk 00:34:27]} {[%emt 00:02:21]} 45. e5 {[%clk 00:29:44]} {[%emt
00:01:13]} fxe5+ {[%clk 00:32:26]} {[%emt 00:02:31]} 46. Bxe5 {[%clk 00:30:02]}
{[%emt 00:00:11]} Bg2 {[%clk 00:31:46]} {[%emt 00:01:11]} 47. d4 {[%clk
00:29:45]} {[%emt 00:00:48]} Bf1 {[%clk 00:31:30]} {[%emt 00:00:45]} 48. d5+
{[%clk 00:29:18]} {[%emt 00:00:57]} Ke7 {[%clk 00:30:42]} {[%emt 00:01:15]} 49.
c5 {[%clk 00:22:22]} {[%emt 00:07:28]} Bg2 {[%clk 00:30:51]} {[%emt 00:00:21]}
50. d6+ {[%clk 00:21:00]} {[%emt 00:01:53]} Kd7 {[%clk 00:25:13]} {[%emt
00:06:07]} 51. Bd4 {[%clk 00:20:44]} {[%emt 00:00:45]} Bc6 {[%clk 00:24:27]}
{[%emt 00:01:18]} 52. Ke5 {[%clk 00:20:22]} {[%emt 00:00:51]} Bb7 {[%clk
00:24:40]} {[%emt 00:00:15]} 53. Be3 {[%clk 00:20:19]} {[%emt 00:00:35]} Bc6
{[%clk 00:24:55]} {[%emt 00:00:16]} 54. Kd4 {[%clk 00:19:54]} {[%emt 00:00:55]}
Bf3 {[%clk 00:23:58]} {[%emt 00:01:27]} 55. Kc4 {[%clk 00:19:25]} {[%emt
00:00:58]} Kc6 {[%clk 00:23:50]} {[%emt 00:00:38]} 56. Kb4 {[%clk 00:19:21]}
{[%emt 00:00:35]} Be2 {[%clk 00:23:53]} {[%emt 00:00:27]} 57. Ka5 {[%clk
00:17:47]} {[%emt 00:02:04]} Bd3 {[%clk 00:23:21]} {[%emt 00:01:00]} 58. a4
{[%clk 00:11:43]} {[%emt 00:06:35]} Be2 {[%clk 00:22:27]} {[%emt 00:01:24]} 59.
d7 {[%clk 00:10:58]} {[%emt 00:01:16]} Kxd7 {[%clk 00:22:48]} {[%emt 00:00:09]}
60. Kb6 {[%clk 00:11:20]} {[%emt 00:00:07]} Kc8 {[%clk 00:22:45]} {[%emt
00:00:34]} 61. c6 {[%clk 00:09:17]} {[%emt 00:02:33]} Bd3 {[%clk 00:22:51]}
{[%emt 00:00:23]} 62. Bf4 {[%clk 00:09:23]} {[%emt 00:00:24]} Be2 {[%clk
00:23:10]} {[%emt 00:00:12]} 63. Kc5 {[%clk 00:08:37]} {[%emt 00:01:16]} Bd3
{[%clk 00:22:52]} {[%emt 00:00:47]} 64. Kd4 {[%clk 00:08:48]} {[%emt 00:00:20]}
Bb1 {[%clk 00:22:59]} {[%emt 00:00:21]} 65. Bd6 {[%clk 00:07:35]} {[%emt
00:01:45]} Bf5 {[%clk 00:21:49]} {[%emt 00:01:40]} 66. Be5 {[%clk 00:07:38]}
{[%emt 00:00:27]} Bb1 {[%clk 00:21:57]} {[%emt 00:00:21]} 67. Kc3 {[%clk
00:07:39]} {[%emt 00:00:30]} Bf5 {[%clk 00:22:02]} {[%emt 00:00:25]} 68. Kc4
{[%clk 00:07:49]} {[%emt 00:00:20]} Bb1 {[%clk 00:22:10]} {[%emt 00:00:22]} 69.
Kc5 {[%clk 00:08:03]} {[%emt 00:00:16]} Bd3 {[%clk 00:22:22]} {[%emt 00:00:17]}
70. Kb6 {[%clk 00:08:13]} {[%emt 00:00:20]} Be2 {[%clk 00:22:33]} {[%emt
00:00:19]} 71. Ka7 {[%clk 00:08:12]} {[%emt 00:00:33]} Bd3 {[%clk 00:22:53]}
{[%emt 00:00:09]} 1/2-1/2

[Event "Allsvenskan Div I 3 2023/2024: SS Manhem II - Team Pelaro Alingsas SS"]
[Site "Goteborgs schackcentrum, Vegatan 20, Gothenburg, Sweden"]
[Date "2023.10.22"]
[Round "1.6"]
[White "Bengtsson, Siv"]
[Black "Petersson, Erik"]
[Result "1-0"]
[TimeControl "90 minutes for 40 moves + 30 minutes for the rest of the game + 30 seconds per move from move one."]
[WhiteFideId "1701673"]
[BlackFideId "1720210"]
[WhiteElo "1995"]
[BlackElo "1729"]

1. e4 {[%clk 01:30:08]} {[%emt 00:00:51]} c6 {[%clk 01:30:55]} {[%emt
00:00:06]} 2. d4 {[%clk 01:30:25]} {[%emt 00:00:14]} d5 {[%clk 01:31:19]}
{[%emt 00:00:06]} 3. e5 {[%clk 01:30:50]} {[%emt 00:00:05]} Bf5 {[%clk
01:31:41]} {[%emt 00:00:08]} 4. h4 {[%clk 01:30:15]} {[%emt 00:01:03]} h5
{[%clk 01:31:11]} {[%emt 00:01:00]} 5. Bd3 {[%clk 01:29:59]} {[%emt 00:00:47]}
Bxd3 {[%clk 01:31:32]} {[%emt 00:00:09]} 6. Qxd3 {[%clk 01:30:20]} {[%emt
00:00:08]} e6 {[%clk 01:31:55]} {[%emt 00:00:09]} 7. Bg5 {[%clk 01:30:22]}
{[%emt 00:00:27]} Be7 {[%clk 01:31:07]} {[%emt 00:01:18]} 8. Nf3 {[%clk
01:30:20]} {[%emt 00:00:32]} Nd7 {[%clk 01:31:13]} {[%emt 00:00:24]} 9. O-O
{[%clk 01:22:02]} {[%emt 00:08:48]} Qb6 {[%clk 01:05:08]} {[%emt 00:26:35]} 10.
b3 {[%clk 01:06:50]} {[%emt 00:15:42]} Bxg5 {[%clk 00:53:39]} {[%emt 00:11:58]}
11. hxg5 {[%clk 01:05:30]} {[%emt 00:01:51]} Ne7 {[%emt 00:02:01]} 12. c4
{[%clk 01:04:18]} Qa6 {[%clk 00:49:09]} {[%emt 00:05:11]} 13. Nbd2 {[%clk
00:55:30]} {[%emt 00:09:17]} Rd8 {[%clk 00:48:49]} {[%emt 00:00:51]} 14. Rfc1
{[%clk 00:48:45]} {[%emt 00:07:15]} c5 {[%clk 00:45:17]} {[%emt 00:04:04]} 15.
dxc5 {[%clk 00:40:51]} {[%emt 00:08:24]} Nxc5 {[%clk 00:44:56]} {[%emt
00:00:50]} 16. Qc2 {[%clk 00:40:29]} {[%emt 00:00:53]} Nc6 {[%clk 00:28:59]}
{[%emt 00:16:26]} 17. g6 {[%clk 00:35:49]} {[%emt 00:05:10]} Rh6 {[%clk
00:25:12]} {[%emt 00:04:17]} 18. gxf7+ {[%clk 00:35:08]} {[%emt 00:01:10]} Kxf7
{[%clk 00:25:35]} {[%emt 00:00:08]} 19. a3 {[%clk 00:26:39]} {[%emt 00:08:59]}
dxc4 {[%clk 00:16:36]} {[%emt 00:09:28]} 20. Nxc4 {[%clk 00:25:53]} {[%emt
00:01:17]} Nd7 {[%clk 00:09:30]} {[%emt 00:07:36]} 21. Rd1 {[%clk 00:18:01]}
{[%emt 00:08:22]} Ke7 {[%clk 00:09:54]} {[%emt 00:00:06]} 22. Qe4 {[%clk
00:16:40]} {[%emt 00:01:51]} h4 {[%clk 00:08:08]} {[%emt 00:02:16]} 23. Qg4
{[%clk 00:14:35]} {[%emt 00:02:35]} Kf8 {[%clk 00:06:01]} {[%emt 00:02:37]} 24.
Rd6 {[%clk 00:10:10]} {[%emt 00:04:55]} Qb5 {[%clk 00:06:06]} {[%emt 00:00:26]}
25. Rad1 {[%clk 00:09:27]} {[%emt 00:01:11]} Ne7 {[%clk 00:01:31]} {[%emt
00:05:06]} 26. Nd4 {[%clk 00:06:33]} {[%emt 00:03:24]} Qc5 {[%clk 00:00:44]}
{[%emt 00:01:17]} 27. Nxe6+ {[%clk 00:06:37]} {[%emt 00:00:26]} Rxe6 {[%clk
00:01:03]} {[%emt 00:00:11]} 28. Qxe6 {[%clk 00:06:55]} {[%emt 00:00:11]} Nb8
{[%clk 00:29:20]} {[%emt 00:01:20]} 1-0

[Event "Allsvenskan Div I 3 2023/2024: SS Manhem II - Team Pelaro Alingsas SS"]
[Site "Goteborgs schackcentrum, Vegatan 20, Gothenburg, Sweden"]
[Date "2023.10.22"]
[Round "1.7"]
[White "Holmgren, Matilda"]
[Black "Abrahamsson, Patrik"]
[Result "0-1"]
[TimeControl "90 minutes for 40 moves + 30 minutes for the rest of the game + 30 seconds per move from move one."]
[WhiteFideId "1768875"]
[BlackFideId "1716484"]
[WhiteElo "1114"]
[BlackElo "1929"]

1. f4 {[%clk 01:30:57]} {[%emt 00:00:03]} g6 {[%clk 01:30:45]} {[%emt
00:00:16]} 2. Nf3 {[%clk 01:31:01]} {[%emt 00:00:26]} Bg7 {[%clk 01:30:55]}
{[%emt 00:00:19]} 3. e3 {[%clk 01:30:09]} {[%emt 00:01:22]} c5 {[%clk
01:29:32]} {[%emt 00:01:53]} 4. Be2 {[%clk 01:26:54]} {[%emt 00:03:45]} Nc6
{[%clk 01:26:19]} {[%emt 00:03:43]} 5. c3 {[%clk 01:20:46]} {[%emt 00:06:38]}
Nf6 {[%clk 01:24:32]} {[%emt 00:02:16]} 6. O-O {[%clk 01:18:59]} {[%emt
00:02:18]} O-O {[%clk 01:24:14]} {[%emt 00:00:50]} 7. d4 {[%clk 01:17:28]}
{[%emt 00:01:59]} cxd4 {[%clk 01:15:12]} {[%emt 00:09:32]} 8. cxd4 {[%clk
01:17:25]} {[%emt 00:00:33]} d5 {[%clk 01:14:50]} {[%emt 00:00:52]} 9. Nc3
{[%clk 01:13:24]} {[%emt 00:04:31]} Bf5 {[%clk 01:07:56]} {[%emt 00:07:24]} 10.
Bd3 {[%clk 01:11:54]} {[%emt 00:02:00]} Rc8 {[%clk 00:58:11]} {[%emt 00:10:15]}
11. Qe2 {[%clk 01:03:42]} {[%emt 00:08:42]} Nb4 {[%clk 00:52:57]} {[%emt
00:05:45]} 12. Bxf5 {[%clk 01:02:55]} {[%emt 00:01:17]} gxf5 {[%clk 00:53:13]}
{[%emt 00:00:13]} 13. a3 {[%clk 01:01:48]} {[%emt 00:01:36]} Nc6 {[%clk
00:52:55]} {[%emt 00:00:49]} 14. Bd2 {[%clk 00:54:01]} {[%emt 00:08:18]} e6
{[%clk 00:46:12]} {[%emt 00:07:12]} 15. Kh1 {[%clk 00:51:26]} {[%emt 00:03:05]}
Ne7 {[%clk 00:39:22]} {[%emt 00:07:19]} 16. h3 {[%clk 00:45:08]} {[%emt
00:06:49]} Ng6 {[%clk 00:35:43]} {[%emt 00:04:09]} 17. Rg1 {[%clk 00:42:55]}
{[%emt 00:02:44]} Ne4 {[%clk 00:31:04]} {[%emt 00:05:09]} 18. Nxe4 {[%clk
00:41:26]} {[%emt 00:01:58]} fxe4 {[%clk 00:31:05]} {[%emt 00:00:30]} 19. Nh2
{[%clk 00:36:50]} {[%emt 00:05:06]} Rc2 {[%clk 00:30:19]} {[%emt 00:01:15]} 20.
b4 {[%clk 00:36:01]} {[%emt 00:01:19]} Qh4 {[%clk 00:29:13]} {[%emt 00:01:36]}
21. Qe1 {[%clk 00:32:26]} {[%emt 00:04:06]} Qxe1 {[%clk 00:27:31]} {[%emt
00:02:12]} 22. Bxe1 {[%clk 00:31:42]} {[%emt 00:00:41]} Re2 {[%clk 00:27:57]}
23. Nf1 {[%clk 00:31:19]} {[%emt 00:01:28]} Rc8 {[%clk 00:27:39]} {[%emt
00:00:48]} 24. Bd2 {[%clk 00:30:48]} {[%emt 00:01:02]} Nxf4 {[%clk 00:21:57]}
{[%emt 00:06:12]} 25. Ra2 {[%clk 00:25:04]} {[%emt 00:06:13]} Nd3 {[%clk
00:20:26]} {[%emt 00:02:02]} 26. Ng3 {[%clk 00:22:02]} {[%emt 00:03:33]} Rf2
{[%clk 00:19:27]} {[%emt 00:01:28]} 27. Rf1 {[%clk 00:20:10]} {[%emt 00:02:22]}
Rxf1+ {[%clk 00:19:18]} {[%emt 00:00:40]} 28. Nxf1 {[%clk 00:20:34]} {[%emt
00:00:06]} e5 {[%clk 00:18:52]} {[%emt 00:00:56]} 29. dxe5 {[%clk 00:20:17]}
{[%emt 00:00:47]} Bxe5 {[%clk 00:19:09]} {[%emt 00:00:12]} 30. a4 {[%clk
00:18:38]} {[%emt 00:02:10]} f5 {[%clk 00:13:27]} {[%emt 00:06:12]} 31. g3
{[%clk 00:18:03]} {[%emt 00:01:05]} Kf7 {[%clk 00:13:19]} {[%emt 00:00:38]} 32.
b5 {[%clk 00:17:32]} {[%emt 00:01:01]} Ke6 {[%clk 00:13:33]} {[%emt 00:00:15]}
33. Kg2 {[%clk 00:17:24]} {[%emt 00:00:37]} Kd6 {[%clk 00:13:42]} {[%emt
00:00:22]} 34. h4 {[%clk 00:16:12]} {[%emt 00:01:42]} Ke6 {[%clk 00:08:59]}
{[%emt 00:05:13]} 35. Kh3 {[%clk 00:14:48]} {[%emt 00:01:54]} h5 {[%clk
00:09:14]} {[%emt 00:00:14]} 36. Kg2 {[%clk 00:14:31]} {[%emt 00:00:48]} Rc4
{[%clk 00:09:13]} {[%emt 00:00:31]} 0-1

[Event "Allsvenskan Div I 3 2023/2024: SS Manhem II - Team Pelaro Alingsas SS"]
[Site "Goteborgs schackcentrum, Vegatan 20, Gothenburg, Sweden"]
[Date "2023.10.22"]
[Round "1.8"]
[White "Lennerstad, Allan"]
[Black "Nowen, Linus"]
[Result "1-0"]
[TimeControl "90 minutes for 40 moves + 30 minutes for the rest of the game + 30 seconds per move from move one."]
[WhiteFideId "1723774"]
[BlackFideId "1747649"]
[WhiteElo "1923"]
[BlackElo "1667"]

1. d4 {[%clk 01:30:53]} {[%emt 00:00:04]} d6 {[%clk 01:30:56]} {[%emt
00:00:05]} 2. c4 {[%clk 01:31:14]} {[%emt 00:00:09]} e5 {[%clk 01:31:19]}
{[%emt 00:00:06]} 3. d5 {[%clk 01:29:13]} {[%emt 00:02:32]} g6 {[%clk
01:31:39]} {[%emt 00:00:10]} 4. Nc3 {[%clk 01:29:30]} {[%emt 00:00:13]} Bg7
{[%clk 01:32:02]} {[%emt 00:00:07]} 5. e4 {[%clk 01:29:22]} {[%emt 00:00:38]}
Ne7 {[%clk 01:31:22]} {[%emt 00:01:10]} 6. Be3 {[%clk 01:27:43]} {[%emt
00:02:09]} f5 {[%clk 01:31:40]} {[%emt 00:00:12]} 7. f3 {[%clk 01:27:37]}
{[%emt 00:00:36]} Nd7 {[%clk 01:30:51]} {[%emt 00:01:19]} 8. Qd2 {[%clk
01:25:45]} {[%emt 00:02:22]} O-O {[%clk 01:28:48]} {[%emt 00:02:32]} 9. Bh6
{[%clk 01:19:21]} {[%emt 00:06:54]} Nf6 {[%clk 01:27:28]} {[%emt 00:01:51]} 10.
Bxg7 {[%clk 01:17:01]} {[%emt 00:02:49]} Kxg7 {[%clk 01:27:51]} {[%emt
00:00:07]} 11. O-O-O {[%clk 01:09:05]} {[%emt 00:08:26]} Bd7 {[%clk 01:23:32]}
{[%emt 00:04:50]} 12. Bd3 {[%clk 01:06:44]} {[%emt 00:02:51]} f4 {[%clk
01:21:32]} {[%emt 00:02:30]} 13. g3 {[%clk 00:58:52]} {[%emt 00:08:22]} Nh5
{[%clk 01:20:36]} {[%emt 00:01:25]} 14. Nce2 {[%clk 00:57:44]} {[%emt
00:01:38]} Qb8 {[%clk 01:18:54]} {[%emt 00:02:13]} 15. Bc2 {[%clk 00:42:32]}
{[%emt 00:15:43]} b5 {[%clk 01:14:33]} {[%emt 00:04:51]} 16. c5 {[%clk
00:42:41]} {[%emt 00:00:20]} dxc5 {[%clk 01:10:12]} {[%emt 00:04:51]} 17. Qc3
{[%clk 00:40:34]} {[%emt 00:02:36]} Qb6 {[%clk 01:08:49]} {[%emt 00:01:55]} 18.
Qxe5+ {[%clk 00:39:50]} {[%emt 00:01:13]} Qf6 {[%clk 01:09:08]} {[%emt
00:00:11]} 19. Qxc7 {[%clk 00:39:00]} {[%emt 00:01:20]} fxg3 {[%clk 01:00:08]}
{[%emt 00:09:30]} 20. hxg3 {[%clk 00:38:18]} {[%emt 00:01:12]} Rad8 {[%clk
01:00:00]} {[%emt 00:00:39]} 21. e5 {[%clk 00:36:11]} {[%emt 00:02:36]} Qg5+
{[%clk 00:59:54]} {[%emt 00:00:36]} 22. f4 {[%clk 00:36:32]} {[%emt 00:00:08]}
Nxf4 {[%clk 01:00:19]} {[%emt 00:00:07]} 23. gxf4 {[%clk 00:35:51]} {[%emt
00:01:10]} Qg2 {[%clk 01:00:38]} {[%emt 00:00:11]} 24. Rh4 {[%clk 00:33:16]}
{[%emt 00:03:05]} Nxd5 {[%clk 00:59:21]} {[%emt 00:01:47]} 25. Qb7 {[%clk
00:29:23]} {[%emt 00:04:23]} Rf7 {[%clk 00:54:27]} {[%emt 00:05:24]} 26. Qxd5
{[%clk 00:29:13]} {[%emt 00:00:40]} 1-0